bitfinex-derivatives/quotes_ETHF0:USTF0_20241024
["timestamp","ask_amount","ask_price","bid_price","bid_amount"]
[1729803576657,3.27045651,2538.8,2538.7,0.39411]
[1729803578353,3.2078,2538.8,2538.7,0.39411]
[1729803580650,3.2078,2539.1,2538.7,4.33331]
[1729803580852,3.2078,2539.1,2539.0,0.39407]
[1729803581253,3.2078,2539.1,2539.0,4.33247]
[1729803586063,4.05599,2539.5,2539.4,0.39401]
[1729803586354,3.72463952,2539.5,2539.4,0.39401]
[1729803586556,3.662,2539.5,2539.4,0.39401]
[1729803590556,3.2078,2539.5,2539.4,0.39401]
[1729803592058,1.13873872,2539.7,2539.5,0.39398]
[1729803592257,3.27043662,2539.6,2539.5,0.39398]
[1729803592655,3.2078,2539.6,2539.5,0.39398]
[1729803594064,3.6461,2539.7,2539.5,0.39398]
[1729803596271,3.6461,2539.7,2539.3,0.8906]
[1729803597070,3.6461,2539.7,2539.5,0.39398]
[1729803597870,3.6461,2539.7,2539.6,0.39397]
[1729803600660,3.2078,2539.7,2539.6,0.39397]
[1729803601071,3.2078,2540.1,2539.7,0.98487]
[1729803601262,3.2078,2540.1,2540.0,0.39391]
[1729803601660,3.27041905,2540.1,2540.0,0.39391]
[1729803601966,3.15999168,2540.1,2540.0,4.33071]
[1729803602163,3.15999168,2540.1,2540.0,0.39391]
[1729803602362,3.22260876,2540.1,2540.0,0.39391]
[1729803604069,3.22260876,2540.1,2539.8,0.8971]
[1729803604261,0.92201789,2540.0,2539.9,0.39391]
[1729803605369,0.06261789,2540.0,2539.9,4.33071]
[1729803605566,0.50761789,2540.0,2539.9,4.33071]
[1729803605764,0.50761789,2540.0,2539.9,0.39391]
[1729803607560,0.50762156,2540.0,2539.9,0.39391]
[1729803608373,0.50762199,2540.0,2539.9,0.39391]
[1729803608672,0.445,2540.0,2539.9,0.39391]
[1729803609372,3.6017,2540.2,2540.1,0.3939]
[1729803609572,3.66432119,2540.2,2539.8,0.4451]
[1729803609771,0.06262119,2540.1,2540.0,0.39391]
[1729803610573,0.45653119,2540.1,2539.9,0.39392]
[1729803610774,0.8649,2540.0,2539.9,0.39392]
[1729803611773,0.8649,2540.0,2539.6,0.8938]
[1729803611968,0.447,2539.9,2539.8,0.39394]
[1729803615478,0.423,2540.0,2539.9,0.39393]
[1729803616776,0.81691,2540.0,2539.9,0.39393]
[1729803617169,0.423,2540.0,2539.8,0.39394]
[1729803617371,3.2078,2539.9,2539.8,0.39394]
[1729803618480,0.81692,2540.0,2539.6,0.8938]
[1729803618682,0.423,2540.0,2539.9,0.39393]
[1729803619374,0.81691,2540.0,2539.9,0.39393]
[1729803620084,3.6017,2540.1,2540.0,0.39391]
[1729803621184,3.2078,2540.1,2540.0,0.39391]
[1729803622680,3.6017,2540.1,2540.0,0.39391]
[1729803622875,3.2078,2540.1,2540.0,0.39391]
[1729803623784,3.27042045,2540.1,2540.0,0.39391]
[1729803623978,3.66432045,2540.1,2540.0,0.39391]
[1729803624383,3.66432045,2540.1,2539.6,1.87873]
[1729803624584,3.6017,2540.1,2539.9,0.39392]
[1729803624785,3.6017,2540.1,2540.0,0.4251]
[1729803624984,3.66432099,2540.1,2540.0,0.4251]
[1729803627083,3.66432202,2540.1,2540.0,0.4251]
[1729803629092,3.66432107,2540.1,2540.0,0.4251]
[1729803632489,3.66432107,2540.1,2540.0,1.2883]
[1729803633198,3.6017,2540.1,2540.0,1.2883]
[1729803633390,3.66432198,2540.1,2540.0,1.2883]
[1729803634393,3.6017,2540.1,2540.0,1.2883]
[1729803634798,0.45652182,2540.1,2540.0,1.2883]
[1729803635198,3.66432182,2540.1,2540.0,1.2883]
[1729803636695,3.6017,2540.1,2540.0,1.2883]
[1729803636895,3.6643218,2540.1,2540.0,1.2883]
[1729803637091,3.6643218,2540.1,2540.0,1.68221]
[1729803637289,3.6643218,2540.1,2540.0,1.2883]
[1729803638500,3.72694348,2540.1,2540.0,1.2883]
[1729803638793,3.6643218,2540.1,2540.0,1.2883]
[1729803641704,0.4565218,2540.1,2540.0,1.2883]
[1729803641904,3.6643218,2540.1,2540.0,1.2883]
[1729803642898,0.4565218,2540.1,2540.0,1.2883]
[1729803643098,3.6643218,2540.1,2540.0,1.2883]
[1729803643599,3.6643218,2540.1,2540.0,1.68221]
[1729803643805,3.6643218,2540.1,2540.0,1.2883]
[1729803644108,3.6643218,2540.1,2540.0,1.68221]
[1729803644405,3.6643218,2540.1,2540.0,1.2883]
[1729803644912,3.6017,2540.1,2540.0,1.2883]
[1729803645413,3.6017,2540.1,2540.0,1.68221]
[1729803647108,0.3939,2540.1,2540.0,1.68221]
[1729803647606,3.6017,2540.1,2540.0,1.2883]
[1729803648304,3.6017,2540.1,2540.0,1.68221]
[1729803648510,3.6017,2540.1,2540.0,0.4165]
[1729803648910,3.6017,2540.1,2540.0,1.24401]
[1729803649204,3.6017,2540.1,2540.0,0.8501]
[1729803649409,3.6017,2540.1,2540.0,1.24401]
[1729803649908,3.6017,2540.1,2540.0,0.4165]
[1729803650214,3.2078,2540.1,2539.7,0.4113]
[1729803650415,3.2078,2540.1,2539.7,0.8526]
[1729803650712,0.39394,2539.8,2539.7,1.24655]
[1729803651413,3.9376,2539.8,2539.3,3.2078]
[1729803651607,0.39401,2539.4,2539.3,1.23291]
[1729803652513,3.60179,2539.5,2539.4,0.39401]
[1729803653113,0.39399,2539.5,2539.4,0.39401]
[1729803653417,3.60179,2539.5,2539.4,0.39401]
[1729803653614,0.39399,2539.5,2539.4,0.39401]
[1729803653808,3.60179,2539.5,2539.4,0.39401]
[1729803654212,3.2078,2539.5,2539.3,0.8389]
[1729803654513,0.39401,2539.4,2539.3,1.23291]
[1729803654908,0.39401,2539.4,2538.6,2.23604812]
[1729803654909,0.4125,2539.4,2538.6,0.98532]
[1729803655217,0.39407,2539.1,2539.0,0.4527]
[1729803655517,3.2078,2539.2,2539.1,0.39405]
[1729803655708,3.60184,2539.2,2539.1,0.39405]
[1729803655912,3.2078,2539.2,2539.1,0.39405]
[1729803656211,0.39397,2539.7,2539.6,0.39397]
[1729803657219,0.39396,2539.7,2539.6,0.39397]
[1729803658518,0.39396,2539.7,2539.5,0.39398]
[1729803659018,0.39396,2539.7,2539.6,0.82187]
[1729803659515,1.25365,2539.8,2539.6,0.82187]
[1729803660618,0.8597,2539.8,2539.6,0.4279]
[1729803660812,0.8597,2539.8,2539.7,0.39396]
[1729803661116,1.25364,2539.8,2539.6,0.82186]
[1729803662219,3.2078,2540.0,2539.6,0.4279]
[1729803662422,3.60172,2540.0,2539.8,0.39394]
[1729803662822,3.60172,2540.0,2539.9,0.4355]
[1729803663417,3.66434476,2540.0,2539.9,0.4355]
[1729803666820,3.60172,2540.0,2539.9,0.4355]
[1729803667016,3.66434608,2540.0,2539.9,0.4355]
[1729803667424,3.60172,2540.0,2539.9,0.82943]
[1729803667827,3.66434528,2540.0,2539.9,0.82943]
[1729803668024,3.60172,2540.0,2539.9,0.82943]
[1729803668427,3.60172,2540.0,2539.9,0.4355]
[1729803669725,3.60172,2540.0,2539.9,0.82943]
[1729803670624,3.2078,2540.0,2539.9,0.82943]
[1729803671030,3.2078,2540.3,2539.9,4.3723]
[1729803671225,3.2078,2540.3,2540.2,0.39388]
[1729803671828,3.60167,2540.3,2540.2,0.39388]
[1729803672025,3.2078,2540.3,2540.2,0.39388]
[1729803672618,0.39386,2540.4,2539.9,1.42031]
[1729803672832,3.60166,2540.4,2540.3,0.39387]
[1729803673423,3.66427436,2540.4,2540.3,0.39387]
[1729803673625,3.66427445,2540.4,2539.9,1.42031]
[1729803673825,3.60166,2540.4,2540.2,0.39387]
[1729803674932,0.39386,2540.4,2540.2,0.39387]
[1729803675426,3.2078,2540.4,2539.9,0.4355]
[1729803675730,3.60166,2540.4,2540.2,0.39388]
[1729803677229,0.39386,2540.4,2540.2,0.39388]
[1729803677435,3.60166,2540.4,2540.2,0.39388]
[1729803678230,3.60166,2540.4,2540.3,0.8745]
[1729803679636,3.60166,2540.4,2540.3,1.26837]
[1729803679929,3.2078,2540.4,2540.3,1.26837]
[1729803680131,3.60165,2540.4,2540.3,1.26837]
[1729803680733,3.60165,2540.4,2540.3,0.8745]
[1729803683040,3.2078,2540.4,2540.3,1.26837]
[1729803683239,4.48505825,2540.4,2540.3,1.26837]
[1729803683938,4.87890825,2540.4,2540.3,1.26837]
[1729803684840,4.87890825,2540.4,2540.3,0.8745]
[1729803685450,3.2078,2540.4,2540.3,1.26837]
[1729803685737,4.48505825,2540.4,2540.3,1.26837]
[1729803685938,4.87890825,2540.4,2540.3,1.26837]
[1729803686632,4.87890825,2540.4,2540.3,0.8745]
[1729803687245,4.87890825,2540.4,2540.3,1.26837]
[1729803687440,4.48505825,2540.4,2540.3,1.26837]
[1729803688442,4.87890825,2540.4,2540.3,1.26837]
[1729803688842,4.48505825,2540.4,2540.3,1.26837]
[1729803689445,4.87890825,2540.4,2540.3,1.26837]
[1729803689939,3.2078,2540.4,2540.3,1.26837]
[1729803690140,3.60164,2540.5,2540.4,0.39384]
[1729803690746,4.87889825,2540.5,2540.4,0.39384]
[1729803691139,1.67109825,2540.5,2540.4,0.39384]
[1729803691837,1.27725825,2540.5,2540.4,0.39384]
[1729803692048,4.48505825,2540.5,2540.4,0.39384]
[1729803692249,4.94149881,2540.5,2540.4,0.39384]
[1729803692443,1.73369881,2540.5,2540.4,0.39384]
[1729803692748,4.54766881,2540.5,2540.4,0.39384]
[1729803693751,1.33986881,2540.5,2540.4,0.39384]
[1729803693950,4.54766881,2540.5,2540.4,0.39384]
[1729803694151,0.39385,2540.4,2540.3,1.26836]
[1729803694343,1.73371881,2540.4,2540.3,1.26836]
[1729803694651,1.33986881,2540.4,2540.3,1.26836]
[1729803695351,1.27725825,2540.4,2540.3,1.26836]
[1729803695847,1.3398679,2540.4,2540.3,1.26836]
[1729803696056,1.67110825,2540.4,2540.3,1.26836]
[1729803696446,1.73371853,2540.4,2540.3,1.26836]
[1729803696945,1.33986853,2540.4,2540.3,1.26836]
[1729803697145,1.27725825,2540.4,2540.3,1.26836]
[1729803700053,1.67110825,2540.4,2540.3,1.26836]
[1729803700253,1.27725825,2540.4,2540.3,1.26836]
[1729803700459,1.67110825,2540.4,2540.3,1.26836]
[1729803701548,3.60165,2540.5,2540.4,0.39385]
[1729803701753,4.87890825,2540.5,2540.4,0.39385]
[1729803702241,0.39385,2540.4,2540.3,1.26836]
[1729803702447,1.67110825,2540.4,2540.3,1.26836]
[1729803703554,1.67110825,2540.4,2540.3,0.4404]
[1729803703849,2.09470825,2540.4,2540.3,0.83427]
[1729803704648,2.09470825,2540.4,2540.3,0.4404]
[1729803704852,2.09470825,2540.4,2540.3,0.83427]
[1729803705045,2.09470825,2540.4,2540.3,0.4404]
[1729803705251,2.09470825,2540.4,2540.3,0.83427]
[1729803705451,1.67110825,2540.4,2540.3,0.83427]
[1729803710849,1.67110825,2540.4,2540.3,0.4404]
[1729803711250,1.67110825,2540.4,2540.3,0.83427]
[1729803715755,1.67110825,2540.4,2540.3,1.45023189]
[1729803715957,1.67110825,2540.4,2540.3,1.05636189]
[1729803716358,1.67110825,2540.4,2540.3,1.45023189]
[1729803717250,1.67110825,2540.4,2540.3,1.77053884]
[1729803718855,1.67110825,2540.4,2540.3,1.15457695]
[1729803719661,1.67110825,2540.4,2540.3,0.83427]
[1729803722656,1.67110825,2540.4,2540.3,1.57341841]
[1729803722862,1.67110825,2540.4,2540.3,1.45022701]
[1729803724556,1.67110825,2540.4,2540.3,0.957461]
[1729803724761,1.67110825,2540.4,2540.3,0.83427]
[1729803726967,1.27725825,2540.4,2540.3,0.83427]
[1729803727361,1.27725825,2540.4,2540.3,0.95746188]
[1729803728071,1.67110825,2540.4,2540.3,0.95746188]
[1729803729066,1.67110825,2540.4,2540.3,0.83427]
[1729803731367,1.67110825,2540.4,2540.3,1.45022272]
[1729803731564,1.67110825,2540.4,2540.3,1.57341326]
[1729803732166,1.27725825,2540.4,2540.3,0.95746054]
[1729803732367,1.27725825,2540.4,2540.3,1.15456525]
[1729803732969,1.67110825,2540.4,2540.3,0.95746054]
[1729803733271,1.67110825,2540.4,2540.3,0.83427]
[1729803733767,1.67110825,2540.4,2540.3,1.15456507]
[1729803734675,1.67110825,2540.4,2540.3,0.83427]
[1729803735578,1.27725825,2540.4,2540.3,1.45022215]
[1729803736876,1.67110825,2540.4,2540.3,1.45022215]
[1729803737071,1.67110825,2540.4,2540.3,0.83427]
[1729803737474,1.27725825,2540.4,2540.3,0.83427]
[1729803737779,1.67110825,2540.4,2540.3,0.83427]
[1729803739176,1.67110825,2540.4,2540.3,0.95746048]
[1729803740172,1.67110825,2540.4,2540.3,1.08065154]
[1729803740579,1.67110825,2540.4,2540.3,0.95746048]
[1729803740973,1.67109825,2540.5,2540.4,0.39384]
[1729803744877,1.27725825,2540.5,2540.3,0.98279048]
[1729803745078,4.0817,2540.6,2540.3,1.37665048]
[1729803745079,1.67110825,2540.4,2540.3,1.37665048]
[1729803745979,1.27725825,2540.4,2540.3,1.37665048]
[1729803746577,1.67110825,2540.4,2540.3,1.37665048]
[1729803746976,1.27725825,2540.4,2540.3,1.37665048]
[1729803747972,1.27725825,2540.4,2540.3,1.99259991]
[1729803748176,1.27725825,2540.4,2540.3,2.3128936]
[1729803748376,1.27725825,2540.4,2540.3,1.69694417]
[1729803750984,1.27725825,2540.4,2540.3,1.25346]
[1729803751286,0.4482,2540.6,2540.5,0.39383]
[1729803751490,1.27725825,2540.7,2540.6,0.39382]
[1729803751781,1.27725825,2540.6,2540.5,0.39383]
[1729803752483,3.2078,2540.9,2540.5,5.21325825]
[1729803752678,4.157,2542.3,2541.1,0.39373]
[1729803752679,4.87878825,2541.2,2541.1,0.39373]
[1729803752984,4.54764938,2541.2,2541.1,0.39373]
[1729803753386,4.54764938,2541.2,2541.1,0.81903]
[1729803754082,3.2078,2541.6,2541.5,0.39368]
[1729803754279,3.66403618,2541.6,2541.5,1.27725825]
[1729803754477,3.2078,2541.6,2541.5,1.67093825]
[1729803754678,4.48505825,2541.6,2541.5,0.39368]
[1729803755280,3.2078,2541.6,2541.5,0.39368]
[1729803755479,1.67085825,2542.0,2541.5,8.41945825]
[1729803755692,1.27725825,2541.9,2541.8,0.39362]
[1729803756387,1.27725825,2541.9,2541.6,1.27725825]
[1729803756583,1.27725825,2541.8,2541.7,0.39364]
[1729803759580,1.27725825,2541.8,2541.7,0.39365]
[1729803763583,0.8421,2542.1,2541.5,4.93175825]
[1729803763786,1.27725825,2541.9,2541.5,3.6545]
[1729803763985,1.27725825,2541.9,2541.8,0.39363]
[1729803764891,1.23569,2542.1,2541.9,0.39362]
[1729803765087,1.27725825,2541.9,2541.8,0.39363]
[1729803767299,1.67088825,2541.9,2541.7,0.39364]
[1729803767498,1.27725825,2541.8,2541.7,0.39364]
[1729803767692,0.8421,2542.1,2541.5,1.72395825]
[1729803767693,0.39361,2542.0,2541.6,1.27725825]
[1729803767899,0.39361,2542.0,2541.8,0.39362]
[1729803768096,1.27725825,2541.9,2541.8,0.39362]
[1729803768293,1.67087825,2541.9,2541.8,0.39362]
[1729803768887,1.27725825,2541.9,2541.8,0.39362]
[1729803769096,1.27725825,2541.9,2541.8,0.39363]
[1729803769701,1.27725825,2541.9,2541.8,0.82933]
[1729803770990,0.39361,2542.0,2541.8,4.3701]
[1729803771306,0.8421,2542.1,2542.0,0.39359]
[1729803771307,0.39359,2542.1,2542.0,0.39359]
[1729803771596,1.27725825,2542.1,2542.0,0.39359]
[1729803771802,0.39358,2542.2,2542.0,3.9336]
[1729803771803,1.27725825,2542.2,2542.0,3.9336]
[1729803772003,1.27725825,2542.1,2542.0,0.3936]
[1729803772295,1.27725825,2542.1,2542.0,4.3272]
[1729803772800,1.67084825,2542.1,2542.0,4.3272]
[1729803773096,1.27725825,2542.1,2542.0,4.32719]
[1729803774000,1.67084825,2542.1,2542.0,4.32719]
[1729803774199,4.0414,2542.4,2542.0,3.9336]
[1729803774402,1.27725825,2542.1,2541.9,1.27725825]
[1729803774594,0.4255,2542.0,2541.9,1.67087825]
[1729803774990,2.09635825,2542.0,2541.9,0.39362]
[1729803775194,2.13495825,2542.0,2541.9,0.39362]
[1729803776194,0.8577,2542.0,2541.9,4.32722]
[1729803776394,0.8577,2542.0,2541.9,5.60447825]
[1729803777304,2.13495825,2542.0,2541.9,4.32722]
[1729803777906,0.4322,2542.0,2541.9,5.60447825]
[1729803778099,1.70945825,2542.0,2541.9,5.60447825]
[1729803779604,2.14165825,2542.0,2541.9,5.60447825]
[1729803780409,2.14165825,2542.0,2541.9,1.67087825]
[1729803781296,3.2078,2542.4,2541.9,8.41865825]
[1729803781503,1.67085825,2542.0,2541.9,0.80302]
[1729803781709,1.67086825,2542.0,2541.9,0.39362]
[1729803783606,1.27725825,2542.0,2541.9,0.39362]
[1729803784009,2.12645825,2542.0,2541.9,0.39362]
[1729803784801,2.11285825,2542.0,2541.9,0.39362]
[1729803785010,0.442,2542.0,2541.9,0.39362]
[1729803785202,1.67084825,2542.1,2542.0,0.39359]
[1729803785509,2.11284825,2542.1,2542.0,0.39359]
[1729803786114,2.11284825,2542.1,2541.9,1.27725825]
[1729803786115,1.71925825,2542.1,2541.9,0.39361]
[1729803786317,1.67085825,2542.0,2541.9,0.39361]
[1729803788105,1.27725825,2542.0,2541.6,3.2078]
[1729803788305,1.67091825,2541.7,2541.6,0.39366]
[1729803793814,1.27725825,2541.7,2541.6,0.39366]
[1729803799021,1.27725825,2541.7,2541.6,0.51677809]
[1729803799220,0.8434,2541.8,2541.6,0.12311809]
[1729803799519,0.8434,2541.8,2541.7,0.39365]
[1729803799718,1.23703,2541.8,2541.7,0.39365]
[1729803800716,2.51428825,2541.8,2541.7,0.39365]
[1729803800916,0.4384,2541.9,2541.4,9.92398435]
[1729803800917,0.83203,2541.9,2541.8,0.39363]
[1729803801217,0.39364,2541.8,2541.7,0.39363]
[1729803801414,2.11239825,2541.8,2541.7,0.39363]
[1729803803225,2.11239825,2541.8,2541.7,0.51674688]
[1729803803819,2.11239825,2541.8,2541.7,0.39363]
[1729803804519,2.11239825,2541.8,2541.7,0.51674851]
[1729803804722,2.11239825,2541.8,2541.7,0.39363]
[1729803806523,2.11239825,2541.8,2541.7,0.51674869]
[1729803806714,2.11239825,2541.8,2541.7,0.7137386]
[1729803807213,2.11239825,2541.8,2541.7,0.51674869]
[1729803809015,2.11239825,2541.8,2541.7,0.12311869]
[1729803809225,2.11239825,2541.8,2541.7,0.51676869]
[1729803810228,2.11239825,2541.8,2541.7,0.83687707]
[1729803811420,2.11239825,2541.8,2541.7,0.51676869]
[1729803815725,0.4415,2541.8,2541.7,0.51676869]
[1729803816231,1.71875825,2541.8,2541.7,0.51676869]
[1729803817223,1.71875825,2541.8,2541.7,0.63988782]
[1729803817729,1.71875825,2541.8,2541.7,0.51676869]
[1729803818117,2.11238825,2541.8,2541.7,0.51676869]
[1729803818528,1.71875825,2541.8,2541.7,0.51676869]
[1729803818829,0.4384,2541.9,2541.7,0.51676869]
[1729803818830,0.39362,2541.9,2541.8,0.39362]
[1729803819020,1.73344341,2541.9,2541.8,0.39362]
[1729803819220,1.73344387,2541.9,2541.8,0.39362]
[1729803819918,1.67087825,2541.9,2541.8,0.39362]
[1729803822127,1.27725825,2541.9,2541.6,3.2078]
[1729803822333,1.27725825,2541.9,2541.4,7.6625061]
[1729803822334,0.39368,2541.6,2541.5,0.39367]
[1729803822634,1.67093825,2541.6,2541.5,0.39367]
[1729803822826,1.72135825,2541.6,2541.5,0.39367]
[1729803823124,2.11501825,2541.6,2541.5,0.39367]
[1729803823920,0.39368,2541.5,2541.4,0.04743533]
[1729803824120,2.08863825,2541.5,2541.4,0.04743533]
[1729803824330,2.08863825,2541.5,2541.4,0.44113533]
[1729803824523,2.08863825,2541.5,2541.4,0.04743533]
[1729803825833,0.3937,2541.4,2541.3,3.6015]
[1729803826029,1.67095825,2541.4,2541.3,3.6015]
[1729803826331,1.27725825,2541.4,2541.3,3.6015]
[1729803826830,1.67095825,2541.4,2541.3,3.6015]
[1729803827226,1.27725825,2541.4,2541.3,3.6015]
[1729803827436,1.69495825,2541.5,2541.4,0.3937]
[1729803827629,1.69495825,2541.5,2541.4,0.821]
[1729803827821,2.08863825,2541.5,2541.4,1.256]
[1729803828925,1.69495825,2541.5,2541.3,3.2078]
[1729803829121,1.67095825,2541.4,2541.3,3.60151]
[1729803830233,1.27725825,2541.4,2541.3,3.60151]
[1729803832129,1.27725825,2541.4,2541.3,3.72464257]
[1729803832335,1.27725825,2541.4,2541.3,3.92165469]
[1729803832939,1.27725825,2541.4,2541.3,3.52794469]
[1729803833134,1.67095825,2541.4,2541.3,3.92165469]
[1729803834835,1.67095825,2541.4,2541.3,3.60151]
[1729803835029,1.67095825,2541.4,2541.3,3.7246446]
[1729803835431,1.67095825,2541.4,2541.3,3.60151]
[1729803836337,1.67095825,2541.4,2541.3,3.2078]
[1729803838247,1.27725825,2541.4,2541.2,0.39372]
[1729803838442,1.27725825,2541.3,2541.2,3.60152]
[1729803839139,1.67096825,2541.3,2541.2,3.60152]
[1729803840137,1.27725825,2541.3,2541.2,3.60152]
[1729803841844,1.67096825,2541.3,2541.2,3.60152]
[1729803842239,1.27725825,2541.3,2541.2,3.60152]
[1729803844738,1.67096825,2541.3,2541.2,3.60152]
[1729803844940,1.67096825,2541.3,2541.2,0.39372]
[1729803845157,1.67096825,2541.3,2541.2,3.60152]
[1729803845947,1.27725825,2541.3,2541.2,3.60152]
[1729803846553,1.27725825,2541.4,2541.3,0.39371]
[1729803846750,0.4441,2541.6,2541.5,0.39368]
[1729803847048,1.33983134,2541.6,2541.5,3.60148]
[1729803848043,1.73349134,2541.6,2541.5,3.60148]
[1729803848544,1.33982957,2541.6,2541.5,3.60148]
[1729803849849,0.06257132,2541.6,2541.5,3.60148]
[1729803850049,1.27725825,2541.6,2541.5,3.60148]
[1729803850248,1.33982957,2541.6,2541.5,3.60148]
[1729803850455,1.27725825,2541.6,2541.5,3.60148]
[1729803850853,0.4244,2541.8,2541.7,0.39365]
[1729803851042,1.70165825,2541.8,2541.7,0.39365]
[1729803852150,2.09528825,2541.8,2541.7,0.39365]
[1729803852748,1.70165825,2541.8,2541.7,0.39365]
[1729803853146,1.27725825,2541.8,2541.7,0.39365]
[1729803854448,1.67088825,2541.8,2541.7,0.39365]
[1729803856662,1.27725825,2541.8,2541.5,3.2078]
[1729803856853,1.27725825,2541.6,2541.5,3.60147]
[1729803857053,1.67091825,2541.6,2541.5,3.60148]
[1729803858253,0.14488109,2564.8,2541.5,3.2078]
[1729803858461,0.39364,2541.8,2541.7,0.39364]
[1729803858657,1.67089825,2541.8,2541.7,0.39364]
[1729803859852,1.27725825,2541.8,2541.7,0.39364]
[1729803860057,1.27725825,2541.8,2541.7,0.81954]
[1729803860359,1.67088825,2541.8,2541.7,0.94265946]
[1729803861459,1.67088825,2541.8,2541.7,0.81954]
[1729803863660,1.67088825,2541.8,2541.7,0.81955]
[1729803863953,0.39366,2541.6,2541.5,3.2078]
[1729803864157,1.67091825,2541.6,2541.5,3.60147]
[1729803864863,6.4889165,2541.6,2541.2,3.2078]
[1729803865158,2.9482265,2541.3,2541.2,3.2078]
[1729803865352,6.8834265,2541.3,2541.2,3.2078]
[1729803865953,7.3012265,2541.3,2541.2,3.2078]
[1729803867059,6.02396825,2541.3,2541.2,3.2078]
[1729803868767,0.39374,2541.2,2541.1,3.2078]
[1729803868959,1.67099825,2541.2,2541.1,3.60154]
[1729803869263,1.67099825,2541.2,2541.1,0.39374]
[1729803869667,1.67099825,2541.2,2541.1,3.60154]
[1729803870970,1.67099825,2541.2,2541.0,0.39375]
[1729803871268,1.68465825,2541.1,2541.0,3.60155]
[1729803872860,1.68465825,2541.1,2541.0,0.39375]
[1729803873170,1.68465825,2541.1,2541.0,3.60155]
[1729803873672,1.68465825,2541.1,2541.0,0.39375]
[1729803874063,1.68465825,2541.1,2541.0,3.60155]
[1729803874264,2.07839825,2541.1,2541.0,3.60155]
[1729803874465,2.07839825,2541.1,2541.0,3.2078]
[1729803874978,2.07839825,2541.1,2541.0,0.39376]
[1729803875168,2.07839825,2541.1,2541.0,3.60156]
[1729803875870,2.07839825,2541.1,2540.8,0.859]
[1729803875871,9.89460023,2541.1,2540.6,3.60161]
[1729803876062,1.27725825,2540.7,2540.6,0.39381]
[1729803876569,1.27725825,2540.7,2540.6,3.60162]
[1729803876870,1.27725825,2540.7,2540.6,4.02952]
[1729803882473,1.27725825,2540.7,2540.6,4.15268314]
[1729803883378,1.27725825,2540.7,2540.6,4.02952]
[1729803884766,1.27725825,2540.7,2540.6,0.82172]
[1729803884973,1.67105825,2540.7,2540.6,4.02952]
[1729803885167,2.09855825,2540.7,2540.6,4.02952]
[1729803885380,6.03455825,2540.7,2540.6,3.2078]
[1729803887378,0.39383,2540.5,2540.4,0.39384]
[1729803887579,1.67108825,2540.5,2540.4,0.39384]
[1729803888871,1.27725825,2540.5,2540.4,0.39384]
[1729803889282,1.67108825,2540.5,2540.4,0.39384]
[1729803889979,1.67108825,2540.5,2540.3,3.60166]
[1729803890186,1.72565825,2540.4,2540.3,3.60166]
[1729803890585,1.72565825,2540.4,2540.3,3.2078]
[1729803890586,2.11950825,2540.4,2540.3,3.2078]
[1729803891582,0.39387,2540.3,2540.2,1.25288]
[1729803891880,1.67112825,2540.3,2540.2,1.25288]
[1729803892373,1.67112825,2540.3,2540.2,0.83868]
[1729803892980,1.27725825,2540.3,2540.2,0.83868]
[1729803893277,1.67112825,2540.3,2540.2,0.83868]
[1729803894476,1.27725825,2540.3,2540.2,0.83868]
[1729803895070,1.67112825,2540.3,2540.2,0.83868]
[1729803895477,1.27725825,2540.3,2540.1,3.2078]
[1729803895677,2.08413825,2540.2,2540.1,3.6017]
[1729803895876,1.69025825,2540.2,2540.1,3.6017]
[1729803898180,1.27725825,2540.2,2540.1,3.6017]
[1729803898984,0.8833,2540.7,2540.5,0.39383]
[1729803899286,1.73369354,2540.6,2540.3,0.39387]
[1729803899494,0.8833,2540.7,2540.5,0.39383]
[1729803899682,0.0626058,2540.6,2540.5,0.39383]
[1729803899883,0.0626058,2540.6,2540.5,0.83423]
[1729803900083,0.4564258,2540.6,2540.5,0.83423]
[1729803900288,1.33986325,2540.6,2540.5,0.83423]
[1729803900492,1.27711,2540.7,2540.6,0.39382]
[1729803900692,2.61697242,2540.7,2540.5,0.83422]
[1729803900888,1.27725825,2540.6,2540.5,0.83422]
[1729803902590,0.8833,2540.7,2540.6,0.39382]
[1729803902781,1.27725825,2540.7,2540.6,0.39382]
[1729803903589,1.67105825,2540.7,2540.6,0.39382]
[1729803904993,1.67105825,2540.7,2540.5,0.4404]
[1729803905202,0.3938,2540.7,2540.6,0.39382]
[1729803906506,0.3938,2540.7,2540.5,0.4404]
[1729803906507,0.39382,2540.6,2540.5,0.4404]
[1729803906803,1.67107825,2540.6,2540.5,0.4404]
[1729803906999,1.27725825,2540.6,2540.5,0.4404]
[1729803907199,1.27725825,2540.6,2540.5,0.83423]
[1729803910205,1.27725825,2540.6,2540.5,0.95741089]
[1729803912499,2.9483365,2540.6,2540.5,0.56358089]
[1729803912909,1.67107825,2540.6,2540.5,0.56358089]
[1729803913811,2.9483365,2540.6,2540.5,0.4404]
[1729803914003,1.67107825,2540.6,2540.5,0.83423]
[1729803914702,2.9483365,2540.6,2540.5,0.4404]
[1729803915208,1.67107825,2540.6,2540.5,0.4404]
[1729803915509,2.9483365,2540.6,2540.5,0.4404]
[1729803917409,1.67107825,2540.6,2540.5,0.4404]
[1729803919107,1.67107825,2540.6,2540.5,0.83423]
[1729803919505,1.67107825,2540.6,2540.5,0.4404]
[1729803921815,1.67107825,2540.6,2540.5,0.83423]
[1729803922616,1.67107825,2540.6,2540.5,0.4404]
[1729803923817,1.67107825,2540.6,2540.5,0.83423]
[1729803924717,1.67107825,2540.6,2540.5,0.4404]
[1729803925516,1.67107825,2540.6,2540.5,0.83423]
[1729803927223,1.67107825,2540.6,2540.5,0.4404]
[1729803927613,1.67107825,2540.6,2540.5,0.83423]
[1729803930522,1.67107825,2540.6,2540.5,0.4404]
[1729803930720,1.67107825,2540.6,2540.5,0.83423]
[1729803932519,1.67107825,2540.6,2540.5,0.95740867]
[1729803932720,1.67107825,2540.6,2540.5,1.40085188]
[1729803933723,1.67107825,2540.6,2540.5,0.83423]
[1729803935822,1.67107825,2540.6,2540.5,1.4008518]
[1729803936519,1.67107825,2540.6,2540.5,0.83423]
[1729803937922,1.27725825,2540.6,2540.5,0.83423]
[1729803938319,1.67107825,2540.6,2540.5,0.83423]
[1729803940120,1.67107825,2540.6,2540.5,1.15449267]